[Event "*** Titled Tuesday Blitz"]
[Site "Chess.com"]
[Date "2020.05.19"]
[Round "10"]
[White "GM4life"]
[Black "manmanlai1"]
[Result "0-1"]
[WhiteElo "2225"]
[BlackElo "2364"]
[TimeControl "180+1"]
[EndTime "13:58:13 PDT"]
[Termination "manmanlai1 won by checkmate"]

1. e4 {[%clk 0:03:00.9]} 1... c5 {[%clk 0:02:59.7]} 2. Nf3 {[%clk 0:03:00.6]}
2... e6 {[%clk 0:02:59.8]} 3. d4 {[%clk 0:02:59.9]} 3... cxd4 {[%clk 0:03:00]}
4. Nxd4 {[%clk 0:03:00.8]} 4... a6 {[%clk 0:02:58.5]} 5. c4 {[%clk 0:03:00.7]}
5... Qc7 {[%clk 0:02:56.6]} 6. Nc3 {[%clk 0:03:00.5]} 6... Nc6 {[%clk
0:02:54.5]} 7. a3 {[%clk 0:02:58.1]} 7... d6 {[%clk 0:02:51.3]} 8. Be3 {[%clk
0:02:57.9]} 8... g6 {[%clk 0:02:40.9]} 9. Rc1 {[%clk 0:02:53.7]} 9... Bg7 {[%clk
0:02:35.6]} 10. Be2 {[%clk 0:02:51.4]} 10... Nge7 {[%clk 0:02:33.9]} 11. O-O
{[%clk 0:02:51.6]} 11... O-O {[%clk 0:02:24.8]} 12. b4 {[%clk 0:02:46]} 12...
Qb8 {[%clk 0:02:06.4]} 13. Qd2 {[%clk 0:02:43.9]} 13... Rd8 {[%clk 0:02:05.9]}
14. Rfd1 {[%clk 0:02:18]} 14... Bd7 {[%clk 0:02:05.6]} 15. Nb3 {[%clk
0:02:08.7]} 15... Be8 {[%clk 0:02:00.2]} 16. Bb6 {[%clk 0:02:04.9]} 16... Rd7
{[%clk 0:02:00.1]} 17. f4 {[%clk 0:01:32.9]} 17... Nc8 {[%clk 0:01:58.8]} 18.
Bf2 {[%clk 0:01:32.7]} 18... Rd8 {[%clk 0:01:57.1]} 19. c5 {[%clk 0:01:17.2]}
19... Qc7 {[%clk 0:01:51.9]} 20. b5 {[%clk 0:01:06.3]} 20... dxc5 {[%clk
0:01:48.9]} 21. Qe1 {[%clk 0:00:50.5]} 21... Nd4 {[%clk 0:01:23.2]} 22. Nxd4
{[%clk 0:00:48.5]} 22... cxd4 {[%clk 0:01:23.1]} 23. bxa6 {[%clk 0:00:22.6]}
23... bxa6 {[%clk 0:01:21.9]} 24. Nd5 {[%clk 0:00:15]} 24... Qd6 {[%clk
0:01:20.7]} 25. Nc7 {[%clk 0:00:14.5]} 25... Rb8 {[%clk 0:01:07.8]} 26. e5
{[%clk 0:00:14.7]} 26... Qxa3 {[%clk 0:01:05.2]} 27. Nxa6 {[%clk 0:00:14.4]}
27... Rb7 {[%clk 0:00:53.8]} 28. Rxd4 {[%clk 0:00:14.5]} 28... Rbd7 {[%clk
0:00:35.8]} 29. Rxd7 {[%clk 0:00:14]} 29... Bxd7 {[%clk 0:00:35.9]} 30. Nc5
{[%clk 0:00:13.7]} 30... Be8 {[%clk 0:00:30.1]} 31. Nb7 {[%clk 0:00:13.6]} 31...
Rd7 {[%clk 0:00:21.1]} 32. Rxc8 {[%clk 0:00:11.1]} 32... Rxb7 {[%clk 0:00:19.9]}
33. Rxe8+ {[%clk 0:00:11]} 33... Bf8 {[%clk 0:00:20.5]} 34. Bd4 {[%clk
0:00:09.4]} 34... Kg7 {[%clk 0:00:19.5]} 35. h4 {[%clk 0:00:09.1]} 35... Qa2
{[%clk 0:00:18.1]} 36. Kh2 {[%clk 0:00:08.6]} 36... Rb1 {[%clk 0:00:17.9]} 37.
Qf2 {[%clk 0:00:08.5]} 37... Qd5 {[%clk 0:00:17.2]} 38. Bf3 {[%clk 0:00:07.9]}
38... Qc4 {[%clk 0:00:16.7]} 39. h5 {[%clk 0:00:05.8]} 39... h6 {[%clk
0:00:15.3]} 40. hxg6 {[%clk 0:00:05.8]} 40... fxg6 {[%clk 0:00:16.2]} 41. Qe3
{[%clk 0:00:05.3]} 41... Bb4 {[%clk 0:00:13.2]} 42. Rd8 {[%clk 0:00:04.8]} 42...
Re1 {[%clk 0:00:11.9]} 43. Rd7+ {[%clk 0:00:04.8]} 43... Kf8 {[%clk 0:00:11.6]}
44. Qf2 {[%clk 0:00:04.4]} 44... Qc8 {[%clk 0:00:09.3]} 45. Rh7 {[%clk
0:00:02.5]} 45... Kg8 {[%clk 0:00:09.6]} 46. Rxh6 {[%clk 0:00:02.4]} 46... Kg7
{[%clk 0:00:10.1]} 47. Qh4 {[%clk 0:00:02.7]} 47... Qg8 {[%clk 0:00:09.4]} 48.
Rh7+ {[%clk 0:00:03.6]} 48... Qxh7 {[%clk 0:00:09.2]} 49. Qxh7+ {[%clk
0:00:03.8]} 49... Kxh7 {[%clk 0:00:10.1]} 50. Kg3 {[%clk 0:00:04.3]} 50... Rd1
{[%clk 0:00:10.2]} 51. Kg4 {[%clk 0:00:05.2]} 51... Rxd4 {[%clk 0:00:09.9]} 52.
Kg5 {[%clk 0:00:05.8]} 52... Bd2 {[%clk 0:00:10.3]} 53. g3 {[%clk 0:00:05.9]}
53... Kg7 {[%clk 0:00:10.3]} 54. Bg4 {[%clk 0:00:06.3]} 54... Kf7 {[%clk
0:00:10.6]} 55. Kh6 {[%clk 0:00:06.3]} 55... Rd3 {[%clk 0:00:10.8]} 56. Kg5
{[%clk 0:00:06.2]} 56... Rxg3 {[%clk 0:00:10.7]} 57. Kh4 {[%clk 0:00:07.1]}
57... Rxg4+ {[%clk 0:00:10.7]} 58. Kxg4 {[%clk 0:00:06.9]} 58... Kg7 {[%clk
0:00:11]} 59. Kg5 {[%clk 0:00:07.2]} 59... Be3 {[%clk 0:00:10.5]} 60. Kg4 {[%clk
0:00:06.9]} 60... Kh6 {[%clk 0:00:11.1]} 61. Kf3 {[%clk 0:00:07]} 61... Bc1
{[%clk 0:00:10.8]} 62. Kg4 {[%clk 0:00:07.9]} 62... Bd2 {[%clk 0:00:10.2]} 63.
Kf3 {[%clk 0:00:08]} 63... Kh5 {[%clk 0:00:10.7]} 64. Ke2 {[%clk 0:00:08.2]}
64... Bxf4 {[%clk 0:00:10.7]} 65. Kf3 {[%clk 0:00:09.1]} 65... Bxe5 {[%clk
0:00:11.5]} 66. Ke4 {[%clk 0:00:10]} 66... Bf6 {[%clk 0:00:12]} 67. Kf3 {[%clk
0:00:10.1]} 67... Kh4 {[%clk 0:00:12.8]} 68. Kf4 {[%clk 0:00:10.5]} 68... Kh3
{[%clk 0:00:13.4]} 69. Ke4 {[%clk 0:00:10.4]} 69... g5 {[%clk 0:00:13.7]} 70.
Ke3 {[%clk 0:00:10.6]} 70... g4 {[%clk 0:00:14.6]} 71. Kf4 {[%clk 0:00:10.8]}
71... g3 {[%clk 0:00:15.5]} 72. Ke4 {[%clk 0:00:10.9]} 72... g2 {[%clk
0:00:16.4]} 73. Kf3 {[%clk 0:00:11.3]} 73... g1=Q {[%clk 0:00:16.5]} 74. Kf4
{[%clk 0:00:12.2]} 74... Qg5+ {[%clk 0:00:15.7]} 75. Ke4 {[%clk 0:00:13.1]}
75... Qd5+ {[%clk 0:00:15.3]} 76. Kf4 {[%clk 0:00:13.3]} 76... Bg5# {[%clk
0:00:15.4]} 0-1

[Event "*** Titled Tuesday Blitz"]
[Site "Chess.com"]
[Date "2020.05.19"]
[Round "10"]
[White "Orest_Vovk"]
[Black "Savagelittlemole"]
[Result "1-0"]
[WhiteElo "2402"]
[BlackElo "2521"]
[TimeControl "180+1"]
[EndTime "13:58:15 PDT"]
[Termination "Orest_Vovk won by resignation"]

1. e4 {[%clk 0:03:00.9]} 1... c5 {[%clk 0:02:57.5]} 2. Be2 {[%clk 0:03:00.4]}
2... Nc6 {[%clk 0:02:56.1]} 3. c3 {[%clk 0:02:57.8]} 3... Nf6 {[%clk 0:02:52.9]}
4. d3 {[%clk 0:02:58]} 4... g6 {[%clk 0:02:51.9]} 5. f4 {[%clk 0:02:58]} 5...
Bg7 {[%clk 0:02:51.9]} 6. Nf3 {[%clk 0:02:58.3]} 6... O-O {[%clk 0:02:51.7]} 7.
O-O {[%clk 0:02:58.4]} 7... e5 {[%clk 0:02:47.6]} 8. Nxe5 {[%clk 0:02:54.2]}
8... Re8 {[%clk 0:02:31.1]} 9. Nf3 {[%clk 0:02:44.3]} 9... d5 {[%clk 0:02:21.5]}
10. e5 {[%clk 0:02:42.6]} 10... Ng4 {[%clk 0:02:07.5]} 11. d4 {[%clk 0:02:40.4]}
11... cxd4 {[%clk 0:02:04.7]} 12. cxd4 {[%clk 0:02:39.8]} 12... Be6 {[%clk
0:01:55.9]} 13. Ng5 {[%clk 0:02:30.9]} 13... Nh6 {[%clk 0:01:51.8]} 14. Nxe6
{[%clk 0:02:28.1]} 14... fxe6 {[%clk 0:01:52.7]} 15. Be3 {[%clk 0:02:25.5]}
15... Rf8 {[%clk 0:01:51.2]} 16. g4 {[%clk 0:02:14.6]} 16... Rc8 {[%clk
0:01:48.9]} 17. Nc3 {[%clk 0:02:13]} 17... Na5 {[%clk 0:01:46.5]} 18. h3 {[%clk
0:02:00.4]} 18... Nc4 {[%clk 0:01:44.8]} 19. Bxc4 {[%clk 0:01:59.9]} 19... Rxc4
{[%clk 0:01:43]} 20. Kg2 {[%clk 0:01:52.3]} 20... a6 {[%clk 0:01:42.8]} 21. Qd2
{[%clk 0:01:48.6]} 21... b5 {[%clk 0:01:38.1]} 22. f5 {[%clk 0:01:43.4]} 22...
exf5 {[%clk 0:01:36.1]} 23. Bxh6 {[%clk 0:01:40.4]} 23... fxg4 {[%clk
0:01:33.5]} 24. Rxf8+ {[%clk 0:01:38.6]} 24... Qxf8 {[%clk 0:01:29.8]} 25. Bxg7
{[%clk 0:01:38.4]} 25... Qf3+ {[%clk 0:01:27.4]} 26. Kg1 {[%clk 0:01:32.5]}
26... Kxg7 {[%clk 0:01:27.6]} 27. Rf1 {[%clk 0:01:23.5]} 27... Qg3+ {[%clk
0:01:23]} 28. Qg2 {[%clk 0:01:22.6]} 28... Qxg2+ {[%clk 0:01:23.3]} 29. Kxg2
{[%clk 0:01:22.1]} 29... gxh3+ {[%clk 0:01:23.6]} 30. Kxh3 {[%clk 0:01:21.3]}
30... Rxd4 {[%clk 0:01:22.7]} 31. e6 {[%clk 0:01:07.5]} 31... Rd3+ {[%clk
0:01:20.4]} 32. Kg2 {[%clk 0:00:59.5]} 32... Re3 {[%clk 0:01:18.8]} 33. Rf7+
{[%clk 0:00:58.4]} 33... Kg8 {[%clk 0:01:18.6]} 34. Re7 {[%clk 0:00:56.5]} 34...
Re5 {[%clk 0:01:15]} 35. Kf3 {[%clk 0:00:39.9]} 35... h5 {[%clk 0:01:12.5]} 36.
Ne2 {[%clk 0:00:39.3]} 36... Kf8 {[%clk 0:01:03.1]} 37. Rf7+ {[%clk 0:00:38.2]}
37... Kg8 {[%clk 0:01:03.1]} 38. Re7 {[%clk 0:00:26.7]} 38... Kf8 {[%clk
0:01:02.4]} 39. Ra7 {[%clk 0:00:21.4]} 39... Rxe6 {[%clk 0:01:00.8]} 40. Nf4
{[%clk 0:00:21.6]} 40... Rf6 {[%clk 0:00:59.1]} 41. Ke3 {[%clk 0:00:19.4]} 41...
h4 {[%clk 0:00:52.7]} 42. Nxd5 {[%clk 0:00:17.6]} 42... Re6+ {[%clk 0:00:52.6]}
43. Kf3 {[%clk 0:00:17.2]} 43... g5 {[%clk 0:00:50.6]} 44. Kg4 {[%clk
0:00:15.4]} 44... Re2 {[%clk 0:00:46.8]} 45. Rxa6 {[%clk 0:00:10.9]} 45... Rxb2
{[%clk 0:00:45]} 46. Kxg5 {[%clk 0:00:10.8]} 46... h3 {[%clk 0:00:44.2]} 47. Rh6
{[%clk 0:00:08]} 47... h2 {[%clk 0:00:41.2]} 48. a3 {[%clk 0:00:06.9]} 48...
Rg2+ {[%clk 0:00:35.3]} 49. Kf5 {[%clk 0:00:06.4]} 49... Rf2+ {[%clk 0:00:32.8]}
50. Ke4 {[%clk 0:00:06.2]} 50... Re2+ {[%clk 0:00:30]} 51. Kd4 {[%clk
0:00:05.8]} 51... Rd2+ {[%clk 0:00:28.1]} 52. Kc5 {[%clk 0:00:05.7]} 52... Ra2
{[%clk 0:00:25.2]} 53. Kb4 {[%clk 0:00:05.7]} 53... Rb2+ {[%clk 0:00:23.8]} 54.
Kc3 {[%clk 0:00:05.6]} 54... Ra2 {[%clk 0:00:20.9]} 55. Kb3 {[%clk 0:00:05.8]}
55... Rd2 {[%clk 0:00:19.3]} 56. Nc3 {[%clk 0:00:05.1]} 56... Kg7 {[%clk
0:00:13.4]} 57. Rh3 {[%clk 0:00:05.1]} 57... Kg6 {[%clk 0:00:12.1]} 58. Rh8
{[%clk 0:00:04.4]} 58... Kg7 {[%clk 0:00:10.7]} 59. Rh4 {[%clk 0:00:04.5]} 59...
Kg6 {[%clk 0:00:09.5]} 60. Nxb5 {[%clk 0:00:04.7]} 60... Kg5 {[%clk 0:00:07.4]}
61. Rh8 {[%clk 0:00:04.8]} 61... Kg4 {[%clk 0:00:07.4]} 62. Nc3 {[%clk 0:00:05]}
62... Kg3 {[%clk 0:00:06]} 63. Ne4+ {[%clk 0:00:04.7]} 63... Kg2 {[%clk
0:00:05.3]} 64. Nxd2 {[%clk 0:00:05.6]} 64... Kg1 {[%clk 0:00:04.6]} 65. Rxh2
{[%clk 0:00:05.3]} 65... Kxh2 {[%clk 0:00:04.6]} 66. a4 {[%clk 0:00:06.2]} 66...
Kg3 {[%clk 0:00:04.9]} 67. a5 {[%clk 0:00:07.1]} 67... Kf4 {[%clk 0:00:05.8]}
68. a6 {[%clk 0:00:07.9]} 68... Ke5 {[%clk 0:00:06.7]} 69. a7 {[%clk 0:00:08.7]}
69... Kd6 {[%clk 0:00:07.6]} 70. a8=Q {[%clk 0:00:09.5]} 70... Kc7 {[%clk
0:00:08.5]} 1-0

[Event "*** Titled Tuesday Blitz"]
[Site "Chess.com"]
[Date "2020.05.19"]
[Round "10"]
[White "albano87"]
[Black "Bastiandash"]
[Result "0-1"]
[WhiteElo "2320"]
[BlackElo "2213"]
[TimeControl "180+1"]
[EndTime "13:58:15 PDT"]
[Termination "Bastiandash won on time"]

1. Nf3 {[%clk 0:03:00.9]} 1... Nf6 {[%clk 0:03:00.2]} 2. g3 {[%clk 0:03:01.1]}
2... e6 {[%clk 0:02:59.7]} 3. Bg2 {[%clk 0:03:01.2]} 3... d5 {[%clk 0:02:57.4]}
4. O-O {[%clk 0:03:01.2]} 4... Be7 {[%clk 0:02:57.1]} 5. d4 {[%clk 0:03:01.3]}
5... O-O {[%clk 0:02:58]} 6. Nbd2 {[%clk 0:03:01.4]} 6... c5 {[%clk 0:02:57.4]}
7. c3 {[%clk 0:03:00.7]} 7... Nc6 {[%clk 0:02:48.6]} 8. a4 {[%clk 0:02:50.6]}
8... b6 {[%clk 0:02:44.8]} 9. dxc5 {[%clk 0:02:47.4]} 9... Bxc5 {[%clk
0:02:29.1]} 10. b4 {[%clk 0:02:46.3]} 10... Be7 {[%clk 0:02:27.1]} 11. Bb2
{[%clk 0:02:46.6]} 11... Bb7 {[%clk 0:02:25.2]} 12. b5 {[%clk 0:02:43.5]} 12...
Na5 {[%clk 0:02:20.8]} 13. Rc1 {[%clk 0:02:40.3]} 13... Rc8 {[%clk 0:02:19]} 14.
Ne5 {[%clk 0:02:26.5]} 14... Nd7 {[%clk 0:02:15]} 15. Nxd7 {[%clk 0:02:23.7]}
15... Qxd7 {[%clk 0:02:15.9]} 16. e3 {[%clk 0:02:04.3]} 16... Bf6 {[%clk
0:02:10.6]} 17. Qe2 {[%clk 0:01:49.5]} 17... Rc7 {[%clk 0:02:03.3]} 18. Nb1
{[%clk 0:01:34.8]} 18... Rfc8 {[%clk 0:01:52.6]} 19. Rfd1 {[%clk 0:01:33.9]}
19... Rc4 {[%clk 0:01:50]} 20. e4 {[%clk 0:01:24.4]} 20... Rxa4 {[%clk
0:01:32.1]} 21. exd5 {[%clk 0:01:23.9]} 21... Bxd5 {[%clk 0:01:26.9]} 22. Na3
{[%clk 0:01:19.4]} 22... Qb7 {[%clk 0:01:09.5]} 23. Bxd5 {[%clk 0:01:13]} 23...
exd5 {[%clk 0:01:10.4]} 24. Qf3 {[%clk 0:01:04.9]} 24... Nc4 {[%clk 0:00:38.5]}
25. Nxc4 {[%clk 0:01:00.5]} 25... Raxc4 {[%clk 0:00:39.4]} 26. Rxd5 {[%clk
0:00:44.3]} 26... Qe7 {[%clk 0:00:18.9]} 27. Qd3 {[%clk 0:00:36]} 27... R4c7
{[%clk 0:00:15.9]} 28. Rd1 {[%clk 0:00:32.7]} 28... g6 {[%clk 0:00:16]} 29. Rc1
{[%clk 0:00:18.9]} 29... Kg7 {[%clk 0:00:15.5]} 30. Ba1 {[%clk 0:00:17.4]} 30...
Rc4 {[%clk 0:00:14.9]} 31. Kf1 {[%clk 0:00:14.8]} 31... R8c7 {[%clk 0:00:14.7]}
32. Re1 {[%clk 0:00:14.1]} 32... Qa3 {[%clk 0:00:13.3]} 33. Rd1 {[%clk
0:00:08.6]} 33... Qb3 {[%clk 0:00:09.4]} 34. Kg2 {[%clk 0:00:06.8]} 34... h6
{[%clk 0:00:09.5]} 35. Kg1 {[%clk 0:00:06.3]} 35... R4c5 {[%clk 0:00:08.5]} 36.
Rxc5 {[%clk 0:00:06.2]} 36... Rxc5 {[%clk 0:00:09.4]} 37. c4 {[%clk 0:00:05.8]}
37... Qxd3 {[%clk 0:00:09.6]} 38. Bxf6+ {[%clk 0:00:05.2]} 38... Kxf6 {[%clk
0:00:10]} 39. Rxd3 {[%clk 0:00:05.9]} 39... Rxc4 {[%clk 0:00:10.2]} 40. Rd7
{[%clk 0:00:06.2]} 40... Ra4 {[%clk 0:00:09.2]} 41. Rd6+ {[%clk 0:00:06.4]}
41... Kg7 {[%clk 0:00:07.5]} 42. Rc6 {[%clk 0:00:06.7]} 42... Ra5 {[%clk
0:00:07.5]} 43. Rc7 {[%clk 0:00:07]} 43... h5 {[%clk 0:00:07.4]} 44. Kg2 {[%clk
0:00:06.7]} 44... g5 {[%clk 0:00:07.5]} 45. h4 {[%clk 0:00:07.2]} 45... g4
{[%clk 0:00:06.8]} 46. Kf1 {[%clk 0:00:06.2]} 46... Rxb5 {[%clk 0:00:04.2]} 47.
Rxa7 {[%clk 0:00:06.2]} 47... Rb2 {[%clk 0:00:04.6]} 48. Rb7 {[%clk 0:00:06.7]}
48... Kg6 {[%clk 0:00:04.2]} 49. Ke1 {[%clk 0:00:07.2]} 49... b5 {[%clk
0:00:03.4]} 50. Rc7 {[%clk 0:00:07.5]} 50... f6 {[%clk 0:00:04]} 51. Rc8 {[%clk
0:00:06.6]} 51... b4 {[%clk 0:00:04.3]} 52. Rg8+ {[%clk 0:00:06.6]} 52... Kf5
{[%clk 0:00:04.8]} 53. Rb8 {[%clk 0:00:07.4]} 53... Ke4 {[%clk 0:00:04.4]} 54.
Rb5 {[%clk 0:00:08.3]} 54... f5 {[%clk 0:00:03.5]} 55. Rb8 {[%clk 0:00:06.8]}
55... Kf3 {[%clk 0:00:03.7]} 56. Rf8 {[%clk 0:00:05.5]} 56... Re2+ {[%clk
0:00:02.6]} 57. Kd1 {[%clk 0:00:04.2]} 57... Rxf2 {[%clk 0:00:03.5]} 58. Rxf5+
{[%clk 0:00:03.6]} 58... Kxg3 {[%clk 0:00:04.4]} 59. Rxh5 {[%clk 0:00:03.7]}
59... Rh2 {[%clk 0:00:04]} 60. Rb5 {[%clk 0:00:02.4]} 60... Rh1+ {[%clk
0:00:04.4]} 61. Ke2 {[%clk 0:00:01.9]} 61... Rb1 {[%clk 0:00:04.5]} 62. h5
{[%clk 0:00:01.1]} 62... b3 {[%clk 0:00:04.9]} 63. h6 {[%clk 0:00:01.1]} 63...
b2 {[%clk 0:00:05.3]} 0-1

[Event "*** Titled Tuesday Blitz"]
[Site "Chess.com"]
[Date "2020.05.19"]
[Round "10"]
[White "Bacyanide"]
[Black "Robert_Chessmood"]
[Result "1/2-1/2"]
[WhiteElo "2468"]
[BlackElo "2867"]
[TimeControl "180+1"]
[EndTime "13:58:17 PDT"]
[Termination "Game drawn - insufficient material"]

1. d4 {[%clk 0:03:00.9]} 1... Nf6 {[%clk 0:02:59.2]} 2. Nf3 {[%clk 0:03:01]}
2... d5 {[%clk 0:02:59.1]} 3. Bf4 {[%clk 0:03:00.3]} 3... c5 {[%clk 0:02:58.8]}
4. e3 {[%clk 0:03:00.4]} 4... Nc6 {[%clk 0:02:59]} 5. Nbd2 {[%clk 0:03:00.5]}
5... Bf5 {[%clk 0:02:58.4]} 6. Bb5 {[%clk 0:02:55.7]} 6... e6 {[%clk 0:02:55.4]}
7. c4 {[%clk 0:02:34.2]} 7... Rc8 {[%clk 0:02:40.7]} 8. Qa4 {[%clk 0:02:05.5]}
8... Be7 {[%clk 0:02:34.6]} 9. dxc5 {[%clk 0:01:37.3]} 9... O-O {[%clk
0:02:29.8]} 10. b4 {[%clk 0:01:33.6]} 10... a5 {[%clk 0:02:25]} 11. a3 {[%clk
0:01:26.6]} 11... axb4 {[%clk 0:02:18.9]} 12. axb4 {[%clk 0:01:26.2]} 12... Ra8
{[%clk 0:02:18.7]} 13. Qxa8 {[%clk 0:01:25.4]} 13... Qxa8 {[%clk 0:02:19.6]} 14.
Rxa8 {[%clk 0:01:25.1]} 14... Rxa8 {[%clk 0:02:20.5]} 15. Bxc6 {[%clk
0:01:20.9]} 15... bxc6 {[%clk 0:02:21.4]} 16. O-O {[%clk 0:01:20.3]} 16... Ra4
{[%clk 0:02:05.7]} 17. cxd5 {[%clk 0:01:15.5]} 17... Nxd5 {[%clk 0:02:00.5]} 18.
Bd6 {[%clk 0:01:11.4]} 18... Bd3 {[%clk 0:01:53.2]} 19. Rc1 {[%clk 0:01:02.9]}
19... Bf6 {[%clk 0:01:46.5]} 20. Ne5 {[%clk 0:00:50.9]} 20... Bxe5 {[%clk
0:01:45.5]} 21. Bxe5 {[%clk 0:00:51.8]} 21... f6 {[%clk 0:01:44.4]} 22. Bd6
{[%clk 0:00:50.9]} 22... e5 {[%clk 0:01:34.2]} 23. e4 {[%clk 0:00:43.3]} 23...
Nc3 {[%clk 0:01:27.9]} 24. Re1 {[%clk 0:00:38.4]} 24... Rxb4 {[%clk 0:01:08.2]}
25. f3 {[%clk 0:00:36.7]} 25... Rb2 {[%clk 0:01:06.3]} 26. Nf1 {[%clk
0:00:34.4]} 26... Bxf1 {[%clk 0:00:50.7]} 27. Kxf1 {[%clk 0:00:33]} 27... Kf7
{[%clk 0:00:47.6]} 28. Rc1 {[%clk 0:00:30.9]} 28... Ne2 {[%clk 0:00:45.3]} 29.
Ra1 {[%clk 0:00:30.6]} 29... Nd4 {[%clk 0:00:32.7]} 30. Ra7+ {[%clk 0:00:29.2]}
30... Kg6 {[%clk 0:00:33.1]} 31. Bf8 {[%clk 0:00:26.8]} 31... Ne6 {[%clk
0:00:32.8]} 32. Bd6 {[%clk 0:00:24.5]} 32... h5 {[%clk 0:00:32.8]} 33. h4 {[%clk
0:00:22.6]} 33... f5 {[%clk 0:00:26.6]} 34. exf5+ {[%clk 0:00:20]} 34... Kxf5
{[%clk 0:00:27.5]} 35. Rf7+ {[%clk 0:00:19.8]} 35... Kg6 {[%clk 0:00:27]} 36.
Re7 {[%clk 0:00:19.1]} 36... Kf6 {[%clk 0:00:26.3]} 37. Re8 {[%clk 0:00:17.6]}
37... g6 {[%clk 0:00:16.1]} 38. Rc8 {[%clk 0:00:17.3]} 38... Nd4 {[%clk
0:00:14.5]} 39. Rf8+ {[%clk 0:00:17.2]} 39... Kg7 {[%clk 0:00:08.8]} 40. Re8
{[%clk 0:00:17.3]} 40... Kf7 {[%clk 0:00:08.5]} 41. Rxe5 {[%clk 0:00:16.8]}
41... Nf5 {[%clk 0:00:08.9]} 42. Re4 {[%clk 0:00:15.2]} 42... Rd2 {[%clk
0:00:05.6]} 43. Be5 {[%clk 0:00:14]} 43... Rd5 {[%clk 0:00:05.7]} 44. Bd6 {[%clk
0:00:13.9]} 44... Nxd6 {[%clk 0:00:03]} 45. cxd6 {[%clk 0:00:14.8]} 45... Rxd6
{[%clk 0:00:03.9]} 46. Kf2 {[%clk 0:00:15.2]} 46... c5 {[%clk 0:00:04.1]} 47.
Rc4 {[%clk 0:00:15.3]} 47... Rc6 {[%clk 0:00:04.6]} 48. Ke3 {[%clk 0:00:14.1]}
48... Ke6 {[%clk 0:00:05]} 49. Ke4 {[%clk 0:00:14.6]} 49... Kd6 {[%clk
0:00:05.4]} 50. g4 {[%clk 0:00:14.8]} 50... Rc8 {[%clk 0:00:05]} 51. Rc1 {[%clk
0:00:12.8]} 51... c4 {[%clk 0:00:04.4]} 52. Kd4 {[%clk 0:00:12.6]} 52... g5
{[%clk 0:00:04.3]} 53. hxg5 {[%clk 0:00:09.7]} 53... h4 {[%clk 0:00:05.2]} 54.
Kc3 {[%clk 0:00:09.8]} 54... Ke5 {[%clk 0:00:03.9]} 55. Rh1 {[%clk 0:00:10.2]}
55... Rh8 {[%clk 0:00:03.8]} 56. Kxc4 {[%clk 0:00:08.9]} 56... Kf4 {[%clk
0:00:04.3]} 57. g6 {[%clk 0:00:09.4]} 57... Kg3 {[%clk 0:00:04.7]} 58. f4 {[%clk
0:00:07.3]} 58... Kxg4 {[%clk 0:00:02.6]} 59. f5 {[%clk 0:00:06]} 59... Ra8
{[%clk 0:00:01.3]} 60. g7 {[%clk 0:00:04.7]} 60... Kxf5 {[%clk 0:00:01.8]} 61.
Rxh4 {[%clk 0:00:03.3]} 61... Rg8 {[%clk 0:00:01.8]} 62. Rh8 {[%clk 0:00:01.9]}
62... Rxg7 {[%clk 0:00:01.8]} 63. Rd8 {[%clk 0:00:02.6]} 63... Rg5 {[%clk
0:00:02.7]} 64. Rd5+ {[%clk 0:00:02.4]} 64... Kg4 {[%clk 0:00:03.6]} 65. Rxg5+
{[%clk 0:00:02.9]} 65... Kxg5 {[%clk 0:00:04.5]} 1/2-1/2

[Event "*** Titled Tuesday Blitz"]
[Site "Chess.com"]
[Date "2020.05.19"]
[Round "10"]
[White "Cambek64"]
[Black "bait_or_mate"]
[Result "0-1"]
[WhiteElo "2335"]
[BlackElo "2460"]
[TimeControl "180+1"]
[EndTime "13:58:17 PDT"]
[Termination "bait_or_mate won on time"]

1. b3 {[%clk 0:03:00.8]} 1... e5 {[%clk 0:02:57.6]} 2. Bb2 {[%clk 0:02:57.4]}
2... d6 {[%clk 0:02:57.7]} 3. e3 {[%clk 0:02:57]} 3... g6 {[%clk 0:02:57.9]} 4.
d4 {[%clk 0:02:56.7]} 4... Bg7 {[%clk 0:02:57.7]} 5. dxe5 {[%clk 0:02:55.7]}
5... Nc6 {[%clk 0:02:57.2]} 6. Nf3 {[%clk 0:02:52.7]} 6... Nge7 {[%clk
0:02:56.2]} 7. Nbd2 {[%clk 0:02:51.4]} 7... dxe5 {[%clk 0:02:43.8]} 8. Nc4
{[%clk 0:02:49.3]} 8... Qxd1+ {[%clk 0:02:43.7]} 9. Rxd1 {[%clk 0:02:48.1]} 9...
Bg4 {[%clk 0:02:43.8]} 10. Be2 {[%clk 0:02:44.3]} 10... f6 {[%clk 0:02:38.7]}
11. Nfd2 {[%clk 0:02:14.7]} 11... Be6 {[%clk 0:02:30.9]} 12. Ne4 {[%clk
0:02:04.4]} 12... b6 {[%clk 0:02:07.1]} 13. a3 {[%clk 0:01:58]} 13... Kf7 {[%clk
0:02:05.6]} 14. O-O {[%clk 0:01:51.2]} 14... Rhd8 {[%clk 0:02:04.7]} 15. Bd3
{[%clk 0:01:47.7]} 15... h6 {[%clk 0:01:57.6]} 16. f4 {[%clk 0:01:47]} 16... f5
{[%clk 0:01:55.2]} 17. fxe5 {[%clk 0:01:42.1]} 17... Nd5 {[%clk 0:01:43.8]} 18.
Ng3 {[%clk 0:01:22.4]} 18... b5 {[%clk 0:01:42]} 19. e4 {[%clk 0:01:07.8]} 19...
bxc4 {[%clk 0:01:28.1]} 20. exd5 {[%clk 0:01:07.2]} 20... cxd3 {[%clk
0:01:28.7]} 21. dxe6+ {[%clk 0:01:07]} 21... Kxe6 {[%clk 0:01:29.6]} 22. cxd3
{[%clk 0:01:02.2]} 22... Rd7 {[%clk 0:00:57.3]} 23. d4 {[%clk 0:00:59.9]} 23...
Rb8 {[%clk 0:00:55.4]} 24. Ne2 {[%clk 0:00:56.2]} 24... g5 {[%clk 0:00:49.1]}
25. b4 {[%clk 0:00:53.9]} 25... a5 {[%clk 0:00:48]} 26. Rc1 {[%clk 0:00:48.6]}
26... Ne7 {[%clk 0:00:44.5]} 27. Rc4 {[%clk 0:00:45.8]} 27... axb4 {[%clk
0:00:43.8]} 28. axb4 {[%clk 0:00:40.1]} 28... Nd5 {[%clk 0:00:43.8]} 29. Bc3
{[%clk 0:00:33.9]} 29... Ne3 {[%clk 0:00:37.8]} 30. Rc6+ {[%clk 0:00:30.5]}
30... Kd5 {[%clk 0:00:37.6]} 31. Rc5+ {[%clk 0:00:28.5]} 31... Ke4 {[%clk
0:00:37.5]} 32. Ng3+ {[%clk 0:00:26.6]} 32... Kd3 {[%clk 0:00:37]} 33. Nxf5
{[%clk 0:00:22.6]} 33... Nxf1 {[%clk 0:00:32.8]} 34. Kxf1 {[%clk 0:00:22.5]}
34... g4 {[%clk 0:00:30.1]} 35. e6 {[%clk 0:00:19.6]} 35... Bxd4 {[%clk
0:00:22.5]} 36. Bxd4 {[%clk 0:00:18.6]} 36... Rdd8 {[%clk 0:00:21.5]} 37. e7
{[%clk 0:00:17.5]} 37... Re8 {[%clk 0:00:21.2]} 38. Rxc7 {[%clk 0:00:17.3]}
38... Rxb4 {[%clk 0:00:20.7]} 39. Bc5 {[%clk 0:00:14.6]} 39... Rf4+ {[%clk
0:00:20.5]} 40. Ke1 {[%clk 0:00:12.1]} 40... Rxf5 {[%clk 0:00:21.4]} 41. Rd7+
{[%clk 0:00:11.9]} 41... Kc4 {[%clk 0:00:17.7]} 42. Rd8 {[%clk 0:00:10.3]} 42...
Re5+ {[%clk 0:00:17.6]} 43. Kf2 {[%clk 0:00:08.4]} 43... R8xe7 {[%clk
0:00:15.9]} 44. Bxe7 {[%clk 0:00:08.5]} 44... Rxe7 {[%clk 0:00:16.8]} 45. Rd6
{[%clk 0:00:08.3]} 45... h5 {[%clk 0:00:15.8]} 46. Kg3 {[%clk 0:00:06.8]} 46...
Re5 {[%clk 0:00:10.7]} 47. Rf6 {[%clk 0:00:05.8]} 47... Kd5 {[%clk 0:00:10.1]}
48. Kh4 {[%clk 0:00:05.8]} 48... Ke4 {[%clk 0:00:09.5]} 49. g3 {[%clk
0:00:05.5]} 49... Ke3 {[%clk 0:00:09.1]} 50. Rh6 {[%clk 0:00:05.8]} 50... Kf3
{[%clk 0:00:09.2]} 51. Rxh5 {[%clk 0:00:05.8]} 51... Re2 {[%clk 0:00:05.3]} 52.
Rf5+ {[%clk 0:00:02.4]} 52... Ke4 {[%clk 0:00:06]} 53. Rf4+ {[%clk 0:00:01.2]}
53... Ke5 {[%clk 0:00:06.9]} 54. Kxg4 {[%clk 0:00:01.4]} 54... Rxh2 {[%clk
0:00:07.5]} 55. Rf1 {[%clk 0:00:01.2]} 55... Rh8 {[%clk 0:00:08.4]} 56. Kg5
{[%clk 0:00:01.1]} 56... Rg8+ {[%clk 0:00:09.3]} 0-1